fUSD/lending_fUSD_20250522
["ID","MTS","AMOUNT","RATE_DAILY","PERIOD"]
[361957322,1747908659201,-1611.22,0.00032876,5]
[361957323,1747908659210,-922.21,0.00032876,5]
[361957324,1747908659219,-342.0389164,0.00032876,5]
[361957325,1747908659228,-1166.32,0.00032876,5]
[361957326,1747908659237,-420.0,0.00032876,5]
[361957327,1747908659247,-1362.32,0.00032876,5]
[361957328,1747908659256,-420.0,0.00032876,5]
[361957329,1747908659265,-451.36,0.00032876,5]
[361957330,1747908659274,-420.0,0.00032876,5]
[361957331,1747908659283,-1590.41,0.00032876,5]
[361957332,1747908659293,-420.0,0.00032876,5]
[361957333,1747908659302,-420.0,0.00032876,5]
[361957334,1747908659311,-420.0,0.00032876,5]
[361957335,1747908659320,-1527.76,0.00032876,5]
[361957336,1747908659329,-398.00956358,0.00032876,5]
[361957337,1747908659340,-545.85,0.00032876,5]
[361957338,1747908659350,-420.0,0.00032876,5]
[361957339,1747908659359,-1946.25,0.00032876,5]
[361957340,1747908659369,-420.0,0.00032876,5]
[361957341,1747908659379,-420.0,0.00032876,5]
[361957342,1747908659388,-420.0,0.00032876,5]
[361957343,1747908659398,-153.55885,0.00032876,7]
[361957344,1747908659407,-1360.33,0.00032876,5]
[361957345,1747908659417,-1686.73,0.00032876,5]
[361957346,1747908659426,-420.0,0.00032876,5]
[361957347,1747908659436,-420.0,0.00032876,5]
[361957348,1747908659446,-420.0,0.00032876,5]
[361957349,1747908659455,-1763.49,0.00032876,5]
[361957350,1747908659464,-420.0,0.00032876,5]
[361957351,1747908659474,-1546.13,0.00032876,5]
[361957352,1747908659483,-420.0,0.00032876,5]
[361957353,1747908659492,-420.0,0.00032876,5]
[361957354,1747908659501,-578.42,0.00032876,5]
[361957355,1747908659511,-420.0,0.00032876,5]
[361957356,1747908659520,-420.0,0.00032876,5]
[361957357,1747908659529,-420.0,0.00032876,5]
[361957358,1747908659539,-1145.86,0.00032876,5]
[361957359,1747908659547,-420.0,0.00032876,5]
[361957360,1747908659556,-504.98,0.00032876,5]
[361957361,1747908659565,-1183.53,0.00032876,5]
[361957362,1747908659574,-500.0,0.00032876,5]
[361957363,1747908659584,-500.0,0.00032876,5]
[361957364,1747908659593,-500.0,0.00032876,5]
[361957365,1747908659602,-500.0,0.00032876,5]
[361957366,1747908659612,-5097.07,0.00032876,5]
[361957367,1747908659621,-500.0,0.00032876,5]
[361957368,1747908659630,-500.0,0.00032876,5]
[361957369,1747908659639,-420.0,0.00032876,5]
[361957370,1747908659648,-420.0,0.00032876,5]
[361957371,1747908659657,-151.0,0.00032876,7]
[361957372,1747908659666,-152.054811,0.00032876,7]
[361957373,1747908659676,-16280.66,0.00032876,5]
[361957374,1747908659687,-420.0,0.00032876,5]
[361957375,1747908659696,-420.0,0.00032876,5]
[361957376,1747908659705,-835.88,0.00032876,5]
[361957377,1747908659715,-420.0,0.00032876,5]
[361957378,1747908659725,-659.62,0.00032876,5]
[361957379,1747908659734,-1797.54,0.00032876,5]
[361957380,1747908659743,-721.64,0.00032876,5]
[361957381,1747908659753,-420.0,0.00032876,5]
[361957382,1747908659762,-1404.56,0.00032876,5]
[361957383,1747908659771,-420.0,0.00032876,5]
[361957384,1747908659780,-465.09,0.00032876,5]
[361957385,1747908659789,-420.0,0.00032876,5]
[361957386,1747908659799,-2651.21,0.00032876,5]
[361957387,1747908659808,-420.0,0.00032876,5]
[361957388,1747908659817,-420.0,0.00032876,5]
[361957389,1747908659826,-420.0,0.00032876,5]
[361957390,1747908659835,-199.88187724,0.00032876,5]
[361957391,1747908659844,-528.82,0.00032876,5]
[361957392,1747908659853,-1156.51,0.00032876,5]
[361957393,1747908659862,-420.0,0.00032876,5]
[361957394,1747908659872,-420.0,0.00032876,5]
[361957395,1747908659882,-420.0,0.00032876,2]
[361957396,1747908659891,-960.32,0.00032876,5]
[361957397,1747908659900,-151.0,0.00032876,7]
[361957398,1747908659909,-278.87051242,0.00032876,5]
[361957399,1747908659918,-152.453329,0.00032876,7]
[361957400,1747908659927,-420.0,0.00032876,5]
[361957401,1747908659937,-420.0,0.00032876,5]
[361957402,1747908659946,-420.0,0.00032876,5]
[361957403,1747908659955,-420.0,0.00032876,5]
[361957404,1747908659964,-1474.28,0.00032876,5]
[361957405,1747908659974,-420.0,0.00032876,5]
[361957406,1747908659983,-734.13,0.00032876,5]
[361957407,1747908659992,-420.0,0.00032876,5]
[361957408,1747908660001,-507.57,0.00032876,5]
[361957409,1747908660010,-1670.68,0.00032876,5]
[361957410,1747908660019,-420.0,0.00032876,5]
[361957411,1747908660029,-1358.54,0.00032876,5]
[361957412,1747908660038,-422.89549864,0.00032876,5]
[361957413,1747908660048,-434.13,0.00032876,5]
[361957414,1747908660058,-420.0,0.00032876,5]
[361957415,1747908660067,-420.0,0.00032876,5]
[361957416,1747908660077,-847.38,0.00032876,5]
[361957417,1747908660087,-660.84,0.00032876,5]
[361957418,1747908660096,-483.82,0.00032876,5]
[361957419,1747908660104,-420.0,0.00032876,5]
[361957420,1747908660114,-420.0,0.00032876,5]
[361957421,1747908660123,-475.99,0.00032876,5]
[361957422,1747908660132,-1339.82,0.00032876,5]
[361957423,1747908660141,-658.01,0.00032876,5]
[361957424,1747908660150,-420.0,0.00032876,5]
[361957425,1747908660160,-759.94,0.00032876,5]
[361957426,1747908660169,-420.0,0.00032876,5]
[361957427,1747908660179,-420.0,0.00032876,5]
[361957428,1747908660187,-420.0,0.00032876,5]
[361957429,1747908660197,-4608.46,0.00032876,5]
[361957430,1747908660206,-420.0,0.00032876,5]
[361957431,1747908660215,-420.0,0.00032876,5]
[361957432,1747908660225,-420.0,0.00032876,5]
[361957433,1747908660235,-420.0,0.00032876,5]
[361957434,1747908660244,-420.0,0.00032876,5]
[361957435,1747908660254,-420.0,0.00032876,5]
[361957436,1747908660263,-10022.26,0.00032876,2]
[361957437,1747908660272,-420.0,0.00032876,5]
[361957438,1747908660281,-510.2,0.00032876,5]
[361957439,1747908660290,-420.0,0.00032876,5]
[361957440,1747908660300,-576.88,0.00032876,5]
[361957441,1747908660309,-420.0,0.00032876,5]
[361957442,1747908660319,-595.4,0.00032876,5]
[361957443,1747908660329,-420.0,0.00032876,5]
[361957444,1747908660344,-420.0,0.00032876,5]
[361957445,1747908660354,-420.0,0.00032876,5]
[361957446,1747908660364,-420.0,0.00032876,5]
[361957447,1747908660373,-1486.9,0.00032876,5]
[361957448,1747908660383,-420.0,0.00032876,5]
[361957449,1747908660394,-420.0,0.00032876,5]
[361957450,1747908660404,-2696.74,0.00032876,5]
[361957451,1747908660415,-420.0,0.00032876,5]
[361957452,1747908660424,-3222.71,0.00032876,5]
[361957453,1747908660434,-420.0,0.00032876,5]
[361957454,1747908660443,-420.0,0.00032876,5]
[361957455,1747908660453,-1016.39,0.00032876,5]
[361957456,1747908660462,-420.0,0.00032876,5]
[361957457,1747908660471,-1409.09,0.00032876,5]
[361957458,1747908660481,-924.67,0.00032876,5]
[361957459,1747908660491,-420.0,0.00032876,5]
[361957460,1747908660501,-3726.49566917,0.00032876,14]
[361957461,1747908660510,-151.0,0.00032877,7]
[361957462,1747908660520,-151.0,0.00032877,7]
[361957463,1747908660529,-202.419933,0.00032877,7]
[361957464,1747908660538,-265.100721,0.00032877,7]
[361957465,1747908660551,-265.100721,0.00032877,7]
[361957466,1747908660560,-151.0,0.00032877,7]
[361957467,1747908660570,-150.0,0.00032877,2]
[361957468,1747908660579,-5112.4404693,0.0003288,120]
[361957469,1747908660796,-2062.07376339,0.0003288,2]
[361957470,1747908660806,-500.0,0.00032887,2]
[361957471,1747908660815,-500.0,0.00032887,2]
[361957472,1747908660824,-500.0,0.00032887,2]
[361957473,1747908660834,-500.0,0.00032892,2]
[361957474,1747908660843,-500.0,0.00032892,2]
[361957475,1747908660853,-1037.76463675,0.00032898,2]
[361957476,1747908660862,-649.68,0.00032899,5]
[361957477,1747908660871,-151.0,0.000329,7]
[361957478,1747908660880,-151.0,0.000329,7]
[361957479,1747908660891,-151.0,0.000329,7]
[361957480,1747908660900,-150.0,0.00032904,2]
[361957481,1747908660909,-500.0,0.00032915,2]
[361957482,1747908660919,-500.0,0.00032915,2]
[361957483,1747908660928,-468.2377355,0.00032915,2]
[361957484,1747908660938,-500.0,0.0003292,2]
[361957485,1747908660947,-335.0,0.0003292,2]
[361957486,1747908660956,-371.069144,0.00032929,7]
[361957487,1747908660965,-371.069144,0.00032929,7]
[361957488,1747908660976,-606.90756,0.00032929,7]
[361957489,1747908660986,-606.90756,0.00032929,7]
[361957490,1747908660995,-150.0,0.00032932,2]
[361957491,1747908661004,-500.0,0.00032942,2]
[361957492,1747908661013,-500.0,0.00032942,2]
[361957493,1747908661022,-500.0,0.00032947,2]
[361957494,1747908661031,-151.0,0.00032958,7]
[361957495,1747908661040,-151.0,0.00032958,7]
[361957496,1747908661049,-151.0,0.00032958,7]
[361957497,1747908661059,-151.0,0.00032958,7]
[361957498,1747908661068,-213.220195,0.00032958,7]
[361957499,1747908661077,-150.0,0.00032959,2]
[361957500,1747908661086,-500.0,0.0003297,2]
[361957501,1747908661096,-500.0,0.0003297,2]
[361957502,1747908661106,-500.0,0.00032975,2]
[361957503,1747908661115,-150.0,0.00032987,2]
[361957504,1747908661125,-500.0,0.00032997,2]
[361957505,1747908661135,-500.0,0.00032997,2]
[361957506,1747908661144,-500.0,0.00032999,5]
[361957507,1747908661153,-39802.54852773,0.00033,5]
[361957508,1747908661163,-5000.0,0.00033,7]
[361957509,1747908661172,-246.180842,0.00033,7]
[361957510,1747908661181,-246.180842,0.00033,7]
[361957511,1747908661190,-387.67,0.00033,14]
[361957512,1747908661200,-160.0,0.00033,2]
[361957513,1747908661209,-160.0,0.00033,2]
[361957514,1747908661218,-2352.854509,0.00033,7]
[361957515,1747908661227,-2352.854509,0.00033,7]
[361957516,1747908661237,-849.948329,0.00033,7]
[361957517,1747908661247,-849.948329,0.00033,7]
[361957518,1747908661256,-151.0,0.00033,7]
[361957519,1747908661266,-246.319255,0.00033,7]
[361957520,1747908661275,-246.319255,0.00033,7]
[361957521,1747908661285,-154.725948,0.00033,7]
[361957522,1747908661294,-500.0,0.00033002,2]
[361957523,1747908661303,-2062.07376339,0.00033004,2]
[361957524,1747908661313,-805.14,0.00033014,2]
[361957525,1747908661322,-209.70858507,0.00033014,2]
[361957526,1747908661332,-1037.76463675,0.0003302,2]
[361957527,1747908661344,-500.0,0.00033024,2]
[361957528,1747908661354,-500.0,0.00033029,2]
[361957529,1747908661363,-500.0,0.00033052,2]
[361957530,1747908661373,-500.0,0.00033052,2]
[361957531,1747908661383,-620.24013628,0.00033057,2]
[361957532,1747908661393,-500.0,0.00033068,2]
[361957533,1747908661402,-500.0,0.00033068,2]
[361957534,1747908661411,-500.0,0.00033068,2]
[361957535,1747908661422,-500.0,0.00033068,2]
[361957536,1747908661432,-500.0,0.00033068,2]
[361957537,1747908661441,-500.0,0.00033068,2]
[361957538,1747908661451,-500.0,0.00033068,2]
[361957539,1747908661462,-500.0,0.00033068,2]
[361957540,1747908661472,-500.0,0.00033068,2]
[361957541,1747908661483,-500.0,0.00033068,2]
[361957542,1747908661493,-500.0,0.00033068,2]
[361957543,1747908661503,-500.0,0.00033068,2]
[361957544,1747908661512,-500.0,0.00033068,2]
[361957545,1747908661522,-500.0,0.00033068,2]
[361957546,1747908661531,-500.0,0.00033068,2]
[361957547,1747908661540,-500.0,0.00033068,2]
[361957548,1747908661549,-500.0,0.00033068,2]
[361957549,1747908661559,-500.0,0.00033068,2]
[361957550,1747908661569,-500.0,0.00033068,2]
[361957551,1747908661579,-500.0,0.00033068,2]
[361957552,1747908661588,-500.0,0.00033068,2]
[361957553,1747908661598,-500.0,0.00033068,2]
[361957554,1747908661607,-500.0,0.00033068,2]
[361957555,1747908661617,-500.0,0.00033068,2]
[361957556,1747908661627,-500.0,0.00033068,2]
[361957557,1747908661637,-500.0,0.00033068,2]
[361957558,1747908661647,-500.0,0.00033068,2]
[361957559,1747908661657,-500.0,0.00033068,2]
[361957560,1747908661666,-627.0,0.00033068,2]
[361957561,1747908661675,-500.0,0.00033079,2]
[361957562,1747908661685,-500.0,0.00033079,2]
[361957563,1747908661695,-210.0,0.0003308,2]
[361957564,1747908661704,-200.0,0.000331,7]
[361957565,1747908661714,-500.0,0.00033107,2]
[361957566,1747908661724,-500.0,0.00033107,2]
[361957567,1747908661734,-2062.07376339,0.00033128,2]
[361957568,1747908661744,-500.0,0.00033134,2]
[361957569,1747908661754,-500.0,0.00033134,2]
[361957570,1747908661763,-1037.76463675,0.00033141,2]
[361957571,1747908661773,-152.02968676,0.00033143,2]
[361957572,1747908661782,-150.0,0.00033143,2]
[361957573,1747908661791,-570.52601016,0.00033143,2]
[361957574,1747908661800,-152.125424,0.00033143,7]
[361957575,1747908661810,-151.0,0.00033143,7]
[361957576,1747908661820,-152.28539,0.00033143,7]
[361957577,1747908661830,-151.0,0.00033143,7]
[361957578,1747908661839,-153.607196,0.00033143,7]
[361957579,1747908661849,-153.607196,0.00033143,7]
[361957580,1747908661858,-189.648848,0.00033143,7]
[361957581,1747908661867,-189.648848,0.00033143,7]
[361957582,1747908661877,-151.0,0.00033143,7]
[361957583,1747908661887,-151.0,0.00033143,7]
[361957584,1747908661897,-152.925779,0.00033143,7]
[361957585,1747908661906,-208.952924,0.00033143,7]
[361957586,1747908661915,-155.349763,0.00033143,7]
[361957587,1747908661925,-151.963698,0.00033143,7]
[361957588,1747908661935,-151.0,0.00033143,7]
[361957589,1747908661945,-151.0,0.00033143,7]
[361957590,1747908661955,-234.351696,0.00033143,7]
[361957591,1747908661964,-151.706893,0.00033143,7]
[361957592,1747908661975,-151.0,0.00033143,7]
[361957593,1747908661985,-151.0,0.00033143,7]
[361957594,1747908661995,-153.768637,0.00033143,7]
[361957595,1747908662004,-151.0,0.00033143,7]
[361957596,1747908662013,-151.0,0.00033143,7]
[361957597,1747908662023,-151.0,0.00033143,7]
[361957598,1747908662032,-151.0,0.00033143,7]
[361957599,1747908662042,-151.0,0.00033143,7]
[361957600,1747908662052,-151.0,0.00033143,7]
[361957601,1747908662061,-154.89799,0.00033143,7]
[361957602,1747908662071,-151.79455,0.00033143,7]
[361957603,1747908662080,-151.0,0.00033143,7]
[361957604,1747908662267,-466.053638,0.00033143,7]
[361957605,1747908662282,-466.053638,0.00033143,7]
[361957606,1747908662292,-151.0,0.00033143,7]
[361957607,1747908662301,-151.0,0.00033143,7]
[361957608,1747908662311,-151.0,0.00033143,7]
[361957609,1747908662321,-669.08576266,0.00033149,10]
[361957610,1747908662330,-649.68,0.00033149,5]
[361957611,1747908662343,-649.68,0.00033149,5]
[361957612,1747908662352,-649.68,0.00033149,5]
[361957613,1747908662362,-649.68,0.00033149,5]
[361957614,1747908662372,-649.68,0.00033149,5]
[361957615,1747908662382,-500.0,0.00033149,5]
[361957616,1747908662392,-500.0,0.00033149,5]
[361957617,1747908662402,-500.0,0.00033149,5]
[361957618,1747908662415,-500.0,0.00033149,5]
[361957619,1747908662425,-230.94493037,0.0003315,7]
[361957620,1747908662435,-21360.29791082,0.0003315,7]
[361957621,1747908879900,150.0,0.000137,2]
[361957623,1747909406792,-200.0,0.00015,2]
[361957624,1747909410544,-50.0,0.00015,2]
[361957625,1747909508023,46818.75,0.00012,2]
[361957626,1747909509680,-316.588303,0.00012,2]
[361957627,1747909512961,-307.02498384,0.00012,2]
[361957628,1747909574938,-236.2402624,0.00012,2]
[361957629,1747909580802,-215.1890897,0.00012,2]
[361957630,1747909582057,-1145271.270112,0.00012,2]
[361957637,1747909744262,-259.33107372,0.00011999,2]
[361957638,1747909744286,-23.06131681,0.00011999,2]
[361957641,1747909747493,-171.47930532,0.00011999,2]
[361957644,1747909755141,-13.33324762,0.00011999,2]
[361957645,1747909755166,-500.0,0.00011999,2]
[361957646,1747909755189,-500.0,0.00011999,2]
[361957647,1747909755214,-500.0,0.00011999,2]
[361957648,1747909755234,-500.0,0.00011999,2]
[361957649,1747909755257,-500.0,0.00011999,2]
[361957650,1747909755280,-500.0,0.00011999,2]
[361957651,1747909755301,-500.0,0.00011999,2]
[361957652,1747909755323,-500.0,0.00011999,2]
[361957653,1747909755343,-500.0,0.00011999,2]
[361957654,1747909755367,-500.0,0.00011999,2]
[361957655,1747909755390,-500.0,0.00011999,2]
[361957656,1747909755410,-500.0,0.00011999,2]
[361957657,1747909755434,-500.0,0.00011999,2]
[361957658,1747909755457,-500.0,0.00011999,2]
[361957659,1747909755477,-194.65442157,0.00011999,2]
[361957660,1747909755500,-500.0,0.00011999,2]
[361957661,1747909755524,-500.0,0.00011999,2]
[361957662,1747909755547,-500.0,0.00011999,2]
[361957663,1747909755569,-500.0,0.00011999,2]
[361957664,1747909755592,-500.0,0.00011999,2]
[361957665,1747909755616,-609.48791716,0.00011999,2]
[361957666,1747909755638,-500.0,0.00011999,2]
[361957667,1747909755662,-500.0,0.00011999,2]
[361957668,1747909755689,-500.0,0.00011999,2]
[361957669,1747909755714,-500.0,0.00011999,2]
[361957670,1747909755740,-500.0,0.00011999,2]
[361957671,1747909755765,-500.0,0.00011999,2]
[361957672,1747909755788,-500.0,0.00011999,2]
[361957673,1747909755811,-500.0,0.00011999,2]
[361957674,1747909755835,-500.0,0.00011999,2]
[361957675,1747909755858,-500.0,0.00011999,2]
[361957676,1747909755883,-500.0,0.00011999,2]
[361957677,1747909755909,-500.0,0.00011999,2]
[361957678,1747909755933,-500.0,0.00011999,2]
[361957679,1747909755959,-500.0,0.00011999,2]
[361957680,1747909755980,-42473.38967365,0.00012,2]
[361957684,1747909772105,-500.0,0.00011999,2]
[361957685,1747909772125,-243.85049128,0.00011999,2]
[361957686,1747909772149,-499.99999999,0.00011999,2]
[361957687,1747909772171,-1468.05058873,0.00012,2]
[361957704,1747909832012,-1200.0,0.00011999,2]
[361957706,1747909832021,-150.0,0.00011999,2]
[361957708,1747909832031,-245.72213043,0.00011999,2]
[361957709,1747909832041,-244.87522253,0.00011999,2]
[361957710,1747909832050,-1428.28747859,0.00012,2]
[361957711,1747909832068,-706.91205374,0.00012,2]
[361957712,1747909832079,-6592.19552573,0.00012,2]
[361957713,1747909832176,-712.80182721,0.00012,2]
[361957714,1747909832188,-105319.22561889,0.00012,2]
[361957715,1747909832288,-1208.20674771,0.00012,2]
[361957716,1747909832344,-663.86994497,0.00012,2]
[361957717,1747909832356,-36074.98232917,0.00012,2]
[361957718,1747909832368,-1722.8,0.00012,2]
[361957766,1747909837910,-2500.7405,0.00012,2]
[361957767,1747909837921,-1720.32690124,0.00012,2]
[361957768,1747909837933,-516.41352669,0.00012,2]
[361957769,1747909837965,-8625.13881411,0.00012,2]
[361957770,1747909837976,-912.75947795,0.00012,2]
[361957771,1747909837987,-599.73664137,0.00012,2]
[361957772,1747909837998,-13095.0,0.00012,2]
[361957773,1747909838109,-4104.72063404,0.00012,2]
[361957774,1747909838124,-2728.34224307,0.00012,2]
[361957775,1747909838136,-1955.9999971,0.00012,2]
[361957776,1747909838146,-294.06289194,0.00012,2]
[361957777,1747909838176,-1470.24661377,0.00012,2]
[361957778,1747909838187,-1335.55,0.00012,2]
[361957780,1747909838198,-451.15504761,0.00012,2]
[361957920,1747909839549,-202.39955736,0.0001199,2]
[361957923,1747909839575,-2382355.31114398,0.00012,2]
[361958032,1747909840724,-161.88,0.000125,2]
[361958034,1747909840735,-161.88,0.000125,2]
[361958036,1747909840745,-161.88,0.000125,2]
[361958038,1747909840754,-172.85706745,0.00013,2]
[361958040,1747909840764,-622.65878205,0.000131,2]
[361958042,1747909840774,-207.0,0.00013199,2]
[361958044,1747909840783,-200.0,0.000132,2]
[361958046,1747909840794,-250.0,0.000132,2]
[361958048,1747909840803,-151.2441505,0.000132,2]
[361958050,1747909840814,-48.7558495,0.000132,2]
[361958052,1747909840824,-250.0,0.000132,2]
[361958054,1747909840833,-249.33,0.000137,2]
[361958056,1747909840843,-1000.0,0.00014999,2]
[361958058,1747909840852,-622.65878205,0.00015347,2]
[361958060,1747909840861,-622.65878205,0.00017594,2]
[361958062,1747909840871,-200.0,0.00018,2]
[361958064,1747909840880,-622.65878205,0.00019841,2]
[361958066,1747909840889,-622.65878205,0.00022088,2]
[361958068,1747909840898,-200.0,0.00023596,2]
[361958070,1747909840908,-7206.44283096,0.000236,7]
[361958075,1747909840954,-9534.69834028,0.000236,7]
[361958077,1747909840966,-5258.65882876,0.000236,7]
[361958079,1747909840975,-348.9,0.000236,7]
[361958081,1747909840984,-5000.006917,0.00024,5]
[361958083,1747909840993,-59.37405404,0.00024336,2]
[361958162,1747909841772,-563.28472801,0.00024336,2]
[361958163,1747909841783,-622.65878205,0.00026583,2]
[361958165,1747909841794,-1237.24425807,0.0002729,2]
[361958167,1747909841803,-17716.93715137,0.0002739,2]
[361958169,1747909841813,-175.99459271,0.00027586,2]
[361958171,1747909841822,-206.22608611,0.000279,18]
[361958173,1747909841832,-1237.24425803,0.00028021,2]
[361958175,1747909841842,-1237.24425803,0.00028753,2]
[361958177,1747909841851,-622.65878205,0.0002883,2]
[361958178,1747909841861,-206.22608611,0.000289,20]
[361958180,1747909841871,-250.0,0.00029286,2]
[361958182,1747909841881,-1237.24425803,0.00029484,2]
[361958184,1747909841891,-21999.8,0.000295,7]
[361958186,1747909841901,-348.9,0.000295,7]
[361958188,1747909841911,-464.08,0.00029725,2]
[361958189,1747909841921,-206.22608611,0.000299,21]
[361958191,1747909841931,-230.94493036,0.0003,7]
[361958193,1747909841941,-20687.54534487,0.0003,5]
[361958206,1747909842071,-146.27211274,0.0003,5]
[361958303,1747909843058,-1486.59111552,0.0003,5]
[361958305,1747909843070,-1711.87058023,0.0003,5]
[361958310,1747909843113,-556.157003,0.0003,5]
[361958313,1747909843125,-720.0899999,0.0003,5]
[361958315,1747909843137,-635.716992,0.0003,5]
[361958317,1747909843149,-655.65,0.0003,5]
[361958319,1747909843160,-857.8,0.0003,5]
[361958322,1747909843177,-4300.83041726,0.0003,5]
[361958324,1747909843189,-2039.30178093,0.0003,5]
[361958326,1747909843201,-19886.3178089,0.0003,5]
[361958328,1747909843210,-749.47445386,0.0003,120]
[361958330,1747909843220,-1237.24425803,0.00030215,2]
[361958332,1747909843229,-234.89,0.00030367,2]
[361958334,1747909843239,-204.0,0.00030466,2]
[361958336,1747909843248,-1237.24425803,0.00030947,2]
[361958338,1747909843257,-3227.50922123,0.00031019,2]
[361958340,1747909843269,-1012.97035628,0.00031019,2]
[361958347,1747909843323,-19659.52042249,0.00031019,2]
[361958349,1747909843332,-622.65878205,0.00031077,2]
[361958351,1747909843342,-1000.0,0.00031395,2]
[361958353,1747909843351,-204929.71993199,0.000314,7]
[361958355,1747909843360,-21999.8,0.000314,7]
[361958357,1747909843370,-348.9,0.000314,7]
[361958359,1747909843379,-150.56,0.00031424,2]
[361958361,1747909843389,-189.81861159,0.00031568,2]
[361958363,1747909843398,-169.34,0.00031581,120]
[361958365,1747909843407,-496.5,0.00031587,2]
[361958367,1747909843417,-1237.24425803,0.00031678,2]
[361958369,1747909843427,-220.75,0.00031809,2]
[361958371,1747909843436,-150.0,0.00031878,7]
[361958373,1747909843446,-464.08,0.00031989,2]
[361958375,1747909843455,-341.83510718,0.00032,5]
[361958377,1747909843464,-85880.10454127,0.00032,7]
[361958379,1747909843473,-150.79,0.00032276,2]
[361958381,1747909843483,-150.79,0.00032291,2]
[361958383,1747909843493,-150.79,0.00032306,2]
[361958385,1747909843502,-150.79,0.0003232,2]
[361958387,1747909843512,-150.79,0.00032335,2]
[361958389,1747909843521,-150.79,0.0003235,2]
[361958391,1747909843530,-150.79,0.00032364,2]
[361958393,1747909843540,-150.79,0.00032379,2]
[361958395,1747909843549,-150.79,0.00032394,2]
[361958397,1747909843558,-150.79,0.00032408,2]
[361958399,1747909843568,-1237.24425803,0.00032409,2]
[361958401,1747909843577,-150.79,0.00032423,2]
[361958403,1747909843586,-150.79,0.00032438,2]
[361958405,1747909843595,-150.0,0.00032656,7]
[361958407,1747909843604,-150.0,0.00032656,7]
[361958409,1747909843614,-150.0,0.00032656,7]
[361958412,1747909843624,-150.0,0.00032656,7]
[361958414,1747909843634,-150.0,0.00032656,7]
[361958416,1747909843643,-150.0,0.00032656,7]
[361958420,1747909843652,-150.0,0.00032656,7]
[361958423,1747909843662,-150.0,0.00032656,7]
[361958425,1747909843671,-150.0,0.00032656,7]
[361958427,1747909843681,-150.0,0.00032656,7]
[361958429,1747909843692,-150.0,0.00032656,7]
[361958431,1747909843705,-150.0,0.00032656,7]
[361958433,1747909843714,-216.265,0.00032656,7]
[361958435,1747909843724,-1000.0,0.000327,2]
[361958437,1747909843735,-165.64842971,0.000327,2]
[361958439,1747909843745,-161.88,0.00032755,2]
[361958441,1747909843755,-15709.0595,0.00032766,2]
[361958443,1747909843764,-2017.926,0.00032766,33]
[361958445,1747909843775,-181.274,0.00032766,33]
[361958447,1747909843785,-5000.0,0.00032776,2]
[361958449,1747909843795,-153.7907697,0.00032776,15]
[361958451,1747909843804,-21999.8,0.000328,7]
[361958453,1747909843814,-348.9,0.000328,7]
[361958455,1747909843823,-1417.8735735,0.00032866,2]
[361958457,1747909843833,-500.0,0.00032873,5]
[361958459,1747909843842,-212.68362166,0.00032873,5]
[361958461,1747909843852,-303.85786089,0.00032873,5]
[361958463,1747909843861,-500.0,0.00032873,2]
[361958465,1747909843871,-500.0,0.00032875,2]